fUSD/lending_fUSD_20260127
["ID","MTS","AMOUNT","RATE_DAILY","PERIOD"]
[403813634,1769551502577,-500.0,0.00014935,2]
[403813635,1769551502606,-500.0,0.00014935,2]
[403813636,1769551502635,-200.0,0.00014935,2]
[403813637,1769551504710,1474.3326,0.00014844,2]
[403813639,1769551510640,237.1104,0.00014844,2]
[403813640,1769551513551,940.08,0.00014935,2]
[403813641,1769551532687,993.61,0.00014677,2]
[403813646,1769551600783,1954.877,0.00014841,2]
[403813647,1769551600805,2164.2082,0.00014841,2]
[403813648,1769551606754,7835.8018,0.00014841,2]
[403813649,1769551606779,10000.01,0.00014841,2]
[403813650,1769551611622,-323.65036587,0.00014841,2]
[403813651,1769551613744,-161.89442374,0.00014841,2]
[403813652,1769551615739,500.0,0.00014507,2]
[403813653,1769551615845,-157.36015993,0.00014841,2]
[403813654,1769551621820,-213.3269381,0.0001484,2]
[403813655,1769551624579,-86.6730619,0.0001484,2]
[403813656,1769551624605,-191.13952807,0.00014841,2]
[403813657,1769551624893,187.96339825,0.00021,30]
[403813658,1769551630014,-240.29600961,0.00014841,2]
[403813659,1769551634212,5716.92,0.00014533,2]
[403813660,1769551638212,-196.44286658,0.00014841,2]
[403813661,1769551639311,-268.44264817,0.00014841,2]
[403813664,1769551644951,-217.00588567,0.00014841,2]
[403813665,1769551647035,-181.0,0.00014841,2]
[403813666,1769551652434,-301.95084931,0.00014841,2]
[403813667,1769551653867,-300.0,0.00014841,2]
[403813669,1769551661139,-195.11589335,0.00014841,2]
[403813670,1769551663770,-304.88410665,0.00014841,2]
[403813671,1769551665180,2800.0,0.000149,5]
[403813672,1769551700561,1282.950849,0.00014767,2]
[403813673,1769551701699,1200.0,0.0001484,2]
[403813674,1769551722475,500.0,0.0001484,2]
[403813675,1769551722518,500.0,0.0001484,2]
[403813676,1769551722553,17.049151,0.0001484,2]
[403813677,1769551770603,7874.78,0.00014309,2]
[403813678,1769551797673,5847.57506757,0.00014288,2]
[403813679,1769551797699,5847.57506757,0.00014288,2]
[403813680,1769551797721,1011.83986486,0.00014288,2]
[403813681,1769551806655,-150.0,0.000148,2]
[403813682,1769551806678,-109.00739134,0.000148,2]
[403813688,1769551831648,-163.99260866,0.000148,2]
[403813689,1769551831661,-150.0,0.00014839,2]
[403813690,1769551831670,-976.90395368,0.00014839,2]
[403813691,1769551831690,-223.09604632,0.00014839,2]
[403813692,1769551831699,-384.45580405,0.0001484,2]
[403813693,1769551831709,-309.61890923,0.0001484,2]
[403813694,1769551831719,-500.0,0.0001484,2]
[403813695,1769551831728,-500.0,0.0001484,2]
[403813696,1769551831738,-500.0,0.0001484,2]
[403813697,1769551831747,-607.60147606,0.0001484,2]
[403813698,1769551831756,-500.0,0.0001484,2]
[403813699,1769551831765,-500.0,0.0001484,2]
[403813700,1769551831775,-438.50728317,0.0001484,2]
[403813701,1769551831785,-500.0,0.0001484,2]
[403813702,1769551831795,-500.0,0.0001484,2]
[403813704,1769551831806,-500.0,0.0001484,2]
[403813706,1769551831817,-500.0,0.0001484,2]
[403813708,1769551831829,-500.0,0.0001484,2]
[403813710,1769551831841,-500.0,0.0001484,2]
[403813713,1769551831858,-1224.28799692,0.0001484,2]
[403813715,1769551831870,-970.04269296,0.0001484,2]
[403813728,1769551831980,-254.24530396,0.0001484,2]
[403813730,1769551831995,-500.0,0.0001484,2]
[403813732,1769551832005,-500.17278281,0.0001484,2]
[403813851,1769551837619,-724.11521411,0.0001484,2]
[403813852,1769551837629,-49.13076142,0.0001484,2]
[403813853,1769551837732,-309.14203098,0.0001484,2]
[403813854,1769551837743,-1224.28799692,0.0001484,2]
[403813855,1769551837753,-1224.28799692,0.0001484,2]
[403813856,1769551837764,-1224.28799692,0.0001484,2]
[403813857,1769551837774,-1224.28799692,0.0001484,2]
[403813858,1769551837784,-1217.88139935,0.0001484,2]
[403813859,1769551837902,-6.40659757,0.0001484,2]
[403813860,1769551837913,-493.59340243,0.0001484,2]
[403813877,1769551842293,-1.7e-07,0.0001484,2]
[403813878,1769551842350,-730.69459432,0.0001484,2]
[403813879,1769551842360,-1224.28799692,0.0001484,2]
[403813880,1769551842370,-1224.28799692,0.0001484,2]
[403813881,1769551842380,-1224.28799692,0.0001484,2]
[403813882,1769551842390,-1224.28799692,0.0001484,2]
[403813883,1769551842399,-1224.28799692,0.0001484,2]
[403813884,1769551842408,-1224.28799692,0.0001484,2]
[403813885,1769551842417,-1224.28799692,0.0001484,2]
[403813886,1769551842427,-1224.28799692,0.0001484,2]
[403813887,1769551842436,-1224.28799692,0.0001484,2]
[403813888,1769551842445,-1224.28799692,0.0001484,2]
[403813890,1769551842455,-1224.28799692,0.0001484,2]
[403813891,1769551842464,-1224.28799692,0.0001484,2]
[403813892,1769551842473,-1224.28799692,0.0001484,2]
[403813893,1769551842482,-1224.28799692,0.0001484,2]
[403813894,1769551842491,-1224.28799692,0.0001484,2]
[403813895,1769551842500,-1224.28799692,0.0001484,2]
[403813896,1769551842509,-1224.28799692,0.0001484,2]
[403813897,1769551842518,-1224.28799692,0.0001484,2]
[403813898,1769551842528,-1224.28799692,0.0001484,2]
[403813899,1769551842537,-1224.28799692,0.0001484,2]
[403813900,1769551842546,-1224.28799692,0.0001484,2]
[403813901,1769551842556,-1224.28799692,0.0001484,2]
[403813902,1769551842565,-1224.28799692,0.0001484,2]
[403813903,1769551842575,-1224.28799692,0.0001484,2]
[403813904,1769551842584,-1224.28799692,0.0001484,2]
[403813905,1769551842594,-1224.28799692,0.0001484,2]
[403813906,1769551842603,-1224.28799692,0.0001484,2]
[403813907,1769551842612,-1224.28799692,0.0001484,2]
[403813908,1769551842621,-1224.28799692,0.0001484,2]
[403813909,1769551842630,-1224.28799692,0.0001484,2]
[403813910,1769551842639,-1224.28799692,0.0001484,2]
[403813911,1769551842648,-1224.28799692,0.0001484,2]
[403813912,1769551842657,-1224.28799692,0.0001484,2]
[403813913,1769551842667,-1224.28799692,0.0001484,2]
[403813914,1769551842676,-1224.28799692,0.0001484,2]
[403813915,1769551842686,-1224.28799692,0.0001484,2]
[403813916,1769551842695,-1224.28799692,0.0001484,2]
[403813917,1769551842705,-1224.28799692,0.0001484,2]
[403813918,1769551842714,-1224.28799692,0.0001484,2]
[403813919,1769551842724,-1224.28799692,0.0001484,2]
[403813920,1769551842734,-1224.28799692,0.0001484,2]
[403813922,1769551842744,-1224.28799692,0.0001484,2]
[403813924,1769551842753,-1224.28799692,0.0001484,2]
[403813925,1769551842762,-1224.28799692,0.0001484,2]
[403813927,1769551842772,-1224.28799692,0.0001484,2]
[403813928,1769551842781,-1193.68079701,0.0001484,2]
[403813929,1769551842790,-1193.68079701,0.0001484,2]
[403813930,1769551842799,-1193.68079701,0.0001484,2]
[403813931,1769551842808,-1193.68079701,0.0001484,2]
[403813932,1769551842817,-1193.68079701,0.0001484,2]
[403813933,1769551842827,-1193.68079701,0.0001484,2]
[403813934,1769551842836,-1193.68079701,0.0001484,2]
[403813935,1769551842845,-1193.68079701,0.0001484,2]
[403813936,1769551842854,-1193.68079701,0.0001484,2]
[403813937,1769551842863,-1193.68079701,0.0001484,2]
[403813938,1769551842873,-1193.68079701,0.0001484,2]
[403813939,1769551842882,-1193.68079701,0.0001484,2]
[403813940,1769551842891,-1193.68079701,0.0001484,2]
[403813941,1769551842901,-1193.68079701,0.0001484,2]
[403813942,1769551842910,-1193.68079701,0.0001484,2]
[403813943,1769551842919,-1193.68079701,0.0001484,2]
[403813944,1769551842929,-1193.68079701,0.0001484,2]
[403813945,1769551842938,-1193.68079701,0.0001484,2]
[403813946,1769551842947,-1193.68079701,0.0001484,2]
[403813947,1769551842956,-1083.68782514,0.0001484,2]
[403813948,1769551843084,-109.99297187,0.0001484,2]
[403813949,1769551843093,-335.40640653,0.0001484,2]
[403813950,1769551843105,-636.62784855,0.0001484,2]
[403813951,1769551843145,-221.64654193,0.0001484,2]
[403813952,1769551843155,-1193.68079701,0.0001484,2]
[403813953,1769551843164,-1193.68079701,0.0001484,2]
[403813954,1769551843173,-1193.68079701,0.0001484,2]
[403813955,1769551843183,-1193.68079701,0.0001484,2]
[403813956,1769551843193,-1181.74398902,0.0001484,2]
[403813957,1769551843202,-1181.74398902,0.0001484,2]
[403813958,1769551843211,-1181.74398902,0.0001484,2]
[403813959,1769551843221,-1181.74398902,0.0001484,2]
[403813960,1769551843233,-1181.74398902,0.0001484,2]
[403813961,1769551843243,-1181.74398902,0.0001484,2]
[403813962,1769551843252,-1181.74398902,0.0001484,2]
[403813963,1769551843262,-1181.74398902,0.0001484,2]
[403813964,1769551843271,-1181.74398902,0.0001484,2]
[403813965,1769551843280,-1181.74398902,0.0001484,2]
[403813966,1769551843290,-33527.01016305,0.00014841,2]
[403813967,1769551843300,-237.1104,0.00014841,2]
[403813968,1769551843309,-12580.65175279,0.00014843,2]
[403813969,1769551843318,-10816.30317463,0.00014844,2]
[403813970,1769551843327,-2399.6281,0.00014844,2]
[403813971,1769551843337,-166.67,0.00014935,2]
[403813972,1769551843347,-155.59,0.0001494,2]
[403813973,1769551843356,-27603.97307582,0.00014942,2]
[403813974,1769551843367,-151.0,0.00014944,2]
[403813975,1769551843377,-500.0,0.00014944,2]
[403813976,1769551843386,-500.0,0.00014944,2]
[403813977,1769551843396,-500.0,0.00014944,2]
[403813978,1769551843406,-500.0,0.00014944,2]
[403813979,1769551843416,-500.0,0.00014944,2]
[403813980,1769551843426,-211051.15042227,0.00014944,2]
[403813981,1769551843435,-500.0,0.00014944,2]
[403813982,1769551843445,-272.4464,0.00014944,2]
[403813983,1769551843454,-1000.0,0.00014944,2]
[403813984,1769551843464,-150.0,0.00014965,2]
[403813985,1769551843473,-150.0000687,0.00014994,2]
[403813986,1769551843483,-1433.42,0.00015011,2]
[403813987,1769551843492,-857.23,0.00015011,2]
[403813988,1769551843501,-150.99,0.00015011,2]
[403813989,1769551843511,-9999.99,0.00015011,2]
[403813990,1769551843519,-499.99,0.00015011,2]
[403813991,1769551843528,-3825.33,0.00015011,2]
[403813992,1769551843538,-500.0,0.00015031,2]
[403813993,1769551843547,-500.0,0.00015031,2]
[403813994,1769551843556,-457.76053993,0.00015031,2]
[403813995,1769551843566,-444.2987758,0.00015031,2]
[403813996,1769551843575,-200.0,0.00015031,2]
[403813997,1769551843584,-303.04824933,0.00015031,2]
[403813998,1769551843594,-195.0,0.00015031,2]
[403813999,1769551843603,-151.0,0.00015031,2]
[403814000,1769551843613,-151.0,0.00015031,2]
[403814001,1769551843622,-151.0,0.00015031,2]
[403814002,1769551843632,-151.0,0.00015031,2]
[403814003,1769551843642,-151.0,0.00015031,2]
[403814004,1769551843651,-151.0,0.00015031,2]
[403814005,1769551843660,-151.0,0.00015031,2]
[403814006,1769551843669,-151.0,0.00015031,2]
[403814007,1769551843678,-151.0,0.00015031,2]
[403814008,1769551843687,-151.0,0.00015031,2]
[403814009,1769551843697,-151.0,0.00015031,2]
[403814010,1769551843707,-151.0,0.00015031,2]
[403814011,1769551843716,-151.0,0.00015031,2]
[403814012,1769551843726,-151.0,0.00015031,2]
[403814013,1769551843736,-151.0,0.00015031,2]
[403814014,1769551843746,-151.0,0.00015031,2]
[403814015,1769551843756,-151.0,0.00015031,2]
[403814016,1769551843765,-151.0,0.00015031,2]
[403814017,1769551843775,-151.0,0.00015031,2]
[403814018,1769551843785,-151.0,0.00015031,2]
[403814019,1769551843794,-151.0,0.00015031,2]
[403814020,1769551843803,-151.0,0.00015031,2]
[403814021,1769551843812,-151.0,0.00015031,2]
[403814022,1769551843821,-151.0,0.00015031,2]
[403814023,1769551843831,-151.0,0.00015031,2]
[403814024,1769551843840,-151.0,0.00015031,2]
[403814025,1769551843850,-151.0,0.00015031,2]
[403814026,1769551843859,-151.0,0.00015031,2]
[403814027,1769551843868,-151.0,0.00015031,2]
[403814028,1769551843878,-151.0,0.00015031,2]
[403814029,1769551843887,-151.0,0.00015031,2]
[403814030,1769551843896,-1242.68,0.0001504,2]
[403814031,1769551843905,-1195.66,0.0001504,2]
[403814032,1769551843914,-299.99,0.0001504,2]
[403814033,1769551843923,-60353.39,0.0001504,2]
[403814034,1769551843933,-13999.01,0.0001504,2]
[403814035,1769551843942,-9999.99,0.0001504,2]
[403814036,1769551843952,-31531.48,0.0001504,2]
[403814037,1769551843961,-9999.99,0.0001504,2]
[403814038,1769551843971,-427.21,0.0001504,2]
[403814039,1769551843980,-150.99,0.0001504,2]
[403814040,1769551843990,-4999.99,0.0001504,2]
[403814041,1769551843999,-514.32,0.0001504,2]
[403814042,1769551844008,-999.99,0.0001504,2]
[403814043,1769551844017,-29999.99,0.0001504,2]
[403814044,1769551844027,-1268.07,0.0001504,2]
[403814045,1769551844036,-9999.99,0.0001504,2]
[403814046,1769551844047,-56746.54,0.0001504,2]
[403814047,1769551844056,-531.53923225,0.00015043,2]
[403814048,1769551844066,-500.0,0.00015043,2]
[403814049,1769551844076,-500.0,0.00015043,2]
[403814050,1769551844085,-500.0,0.00015043,2]
[403814051,1769551844095,-9999.99,0.00015043,2]
[403814052,1769551844104,-9999.99,0.00015043,2]
[403814053,1769551844114,-3696.67,0.00015043,2]
[403814054,1769551844123,-5900.07,0.00015043,2]
[403814055,1769551844133,-568.68,0.00015143,2]
[403814056,1769551844143,-500.0,0.00015143,2]
[403814057,1769551844152,-500.0,0.00015143,2]
[403814058,1769551844161,-500.0,0.00015143,2]
[403814059,1769551844170,-509.44466748,0.00015143,2]
[403814060,1769551844180,-500.0,0.00015143,2]
[403814061,1769551844189,-500.0,0.00015143,2]
[403814062,1769551844199,-500.0,0.00015143,2]
[403814063,1769551844210,-500.0,0.00015143,2]
[403814064,1769551844219,-500.0,0.00015143,2]
[403814065,1769551844229,-370.45918944,0.00015143,2]
[403814066,1769551844238,-500.0,0.00015143,2]
[403814067,1769551844248,-327.49083589,0.00015143,2]
[403814068,1769551844257,-500.0,0.00015143,2]
[403814069,1769551844267,-503.02582644,0.00015143,2]
[403814070,1769551844277,-500.0,0.00015143,2]
[403814071,1769551844286,-502.09877135,0.00015143,2]
[403814072,1769551844296,-500.0,0.00015143,2]
[403814073,1769551844305,-500.0,0.00015143,2]
[403814074,1769551844315,-511.21840013,0.00015143,2]
[403814075,1769551844327,-500.0,0.00015143,2]
[403814076,1769551844337,-534.60768808,0.00015143,2]
[403814077,1769551844592,-155.59,0.0001516,2]
[403814078,1769551844602,-209.33,0.00015183,2]
[403814079,1769551844611,-940.08,0.00015209,2]
[403814080,1769551844620,-1000.0,0.00015243,2]
[403814081,1769551844630,-251.47013686,0.00015362,2]
[403814082,1769551844640,-940.08,0.00015483,2]
[403814083,1769551844650,-500.0,0.00015487,2]
[403814084,1769551844659,-500.0,0.00015487,2]
[403814085,1769551844668,-500.0,0.00015487,2]
[403814086,1769551844678,-500.0,0.00015487,2]
[403814087,1769551844687,-378.53453993,0.00015487,2]
[403814088,1769551844696,-500.0,0.00015487,2]
[403814089,1769551844704,-500.0,0.00015487,2]
[403814090,1769551844713,-500.0,0.00015487,2]
[403814091,1769551844723,-500.0,0.00015487,2]
[403814092,1769551844732,-98416.23,0.00015488,2]
[403814093,1769551844741,-500.0,0.00015579,2]
[403814094,1769551844751,-204.21914209,0.00015579,2]
[403814095,1769551844760,-166.25,0.00015627,2]
[403814096,1769551844769,-166.67,0.00015757,2]
[403814097,1769551844778,-940.08,0.00015757,2]
[403814098,1769551844788,-500.0,0.0001577,2]
[403814099,1769551844798,-500.0,0.0001577,2]
[403814100,1769551844807,-500.0,0.0001577,2]
[403814101,1769551844816,-500.0,0.0001577,2]
[403814102,1769551844825,-500.0,0.0001577,2]
[403814103,1769551844835,-500.0,0.0001577,2]
[403814104,1769551844844,-1241.77,0.00015783,2]
[403814105,1769551844853,-1242.68,0.00015792,2]
[403814106,1769551844863,-255.0,0.00015967,2]
[403814107,1769551844872,-940.08,0.00016031,2]
[403814108,1769551844882,-291.57,0.00016064,2]
[403814109,1769551844891,-385.18354163,0.00016115,2]
[403814110,1769551844900,-642.98,0.00016115,2]
[403814111,1769551844909,-9999.99,0.00016116,2]
[403814112,1769551844919,-500.0,0.00016137,2]
[403814113,1769551844928,-500.0,0.00016137,2]
[403814114,1769551844937,-150.0,0.00016137,2]
[403814115,1769551844946,-150.0,0.00016137,2]
[403814116,1769551844955,-150.0,0.00016137,2]
[403814117,1769551844964,-500.0,0.00016137,2]
[403814118,1769551844974,-500.0,0.00016137,2]
[403814119,1769551844983,-500.0,0.00016137,2]
[403814120,1769551844993,-150.0,0.00016137,2]
[403814121,1769551845003,-500.0,0.00016137,2]
[403814122,1769551845012,-500.0,0.00016137,2]
[403814123,1769551845022,-150.0,0.00016137,2]
[403814124,1769551845031,-150.0,0.00016137,2]
[403814125,1769551845041,-500.0,0.00016137,2]
[403814126,1769551845050,-150.0,0.00016137,2]
[403814127,1769551845060,-500.0,0.00016137,2]
[403814128,1769551845070,-150.0,0.00016137,2]
[403814129,1769551845079,-150.0,0.00016137,2]
[403814130,1769551845088,-213.19994559,0.00016137,2]
[403814131,1769551845098,-150.0,0.00016137,2]
[403814132,1769551845108,-500.0,0.00016137,2]
[403814133,1769551845117,-243.9850094,0.00016137,2]
[403814134,1769551845127,-150.0,0.00016137,2]
[403814135,1769551845136,-150.0,0.00016137,2]
[403814136,1769551845145,-150.0,0.00016137,2]
[403814137,1769551845155,-150.0,0.00016137,2]
[403814138,1769551845165,-150.0,0.00016137,2]
[403814139,1769551845174,-500.0,0.00016137,2]
[403814140,1769551845183,-150.0,0.00016137,2]
[403814141,1769551845192,-202.67953144,0.00016137,2]
[403814142,1769551845201,-150.0,0.00016137,2]
[403814143,1769551845211,-779.0,0.00016137,2]
[403814144,1769551845220,-444.0,0.00016137,2]
[403814145,1769551845229,-500.0,0.00016192,2]
[403814146,1769551845238,-500.0,0.00016192,2]
[403814147,1769551845247,-150.0,0.00016192,2]
[403814148,1769551845257,-500.0,0.00016192,2]
[403814149,1769551845266,-500.0,0.00016192,2]
[403814150,1769551845276,-500.0,0.00016192,2]
[403814151,1769551845285,-500.0,0.00016192,2]
[403814152,1769551845294,-500.0,0.00016192,2]
[403814153,1769551845304,-150.0,0.00016192,2]
[403814154,1769551845313,-500.0,0.00016192,2]
[403814155,1769551845327,-150.0,0.00016192,2]
[403814156,1769551845336,-500.0,0.00016192,2]
[403814157,1769551845346,-150.0,0.00016192,2]
[403814158,1769551845355,-150.19824857,0.00016192,2]
[403814159,1769551845365,-500.0,0.00016192,2]
[403814160,1769551845374,-150.0,0.00016192,2]
[403814161,1769551845383,-150.0,0.00016192,2]
[403814162,1769551845395,-150.0,0.00016192,2]
[403814163,1769551845403,-500.0,0.00016192,2]
[403814164,1769551845413,-150.0,0.00016192,2]
[403814165,1769551845421,-150.0,0.00016192,2]
[403814166,1769551845431,-779.0,0.00016192,2]
[403814167,1769551845440,-444.0,0.00016192,2]
[403814168,1769551845449,-370.3227898,0.00016199,2]
[403814169,1769551845458,-1493.98,0.00016201,2]
[403814170,1769551845467,-500.0,0.00016247,2]
[403814171,1769551845476,-500.0,0.00016247,2]
[403814172,1769551845485,-152.19420035,0.00016247,2]
[403814173,1769551845495,-500.0,0.00016247,2]
[403814174,1769551845504,-500.0,0.00016247,2]
[403814175,1769551845513,-500.0,0.00016247,2]
[403814176,1769551845522,-500.0,0.00016247,2]
[403814177,1769551845531,-500.0,0.00016247,2]
[403814178,1769551845540,-150.0,0.00016247,2]
[403814179,1769551845549,-240.41327915,0.00016247,2]
[403814180,1769551845558,-500.0,0.00016247,2]
[403814181,1769551845567,-500.0,0.00016247,2]
[403814182,1769551845576,-150.0,0.00016247,2]
[403814183,1769551845586,-500.0,0.00016247,2]
[403814184,1769551845595,-150.93589511,0.00016247,2]
[403814185,1769551845605,-150.0,0.00016247,2]
[403814186,1769551845614,-200.0,0.00016247,2]
[403814187,1769551845624,-401.7333692,0.00016247,2]
[403814188,1769551845633,-150.0,0.00016247,2]
[403814189,1769551845642,-150.0,0.00016247,2]
[403814190,1769551845651,-779.0,0.00016247,2]
[403814191,1769551845661,-444.0,0.00016247,2]
[403814192,1769551845670,-300.0,0.0001628,2]
[403814193,1769551845680,-2500.0,0.0001628,2]
[403814194,1769551845689,-600.0,0.0001628,2]
[403814195,1769551845698,-5000.0,0.0001628,2]
[403814196,1769551845707,-193.0,0.0001628,2]
[403814197,1769551845716,-250.0,0.0001628,2]
[403814198,1769551845726,-195.0,0.0001628,2]
[403814199,1769551845736,-250.0,0.0001628,2]
[403814200,1769551845745,-195.0,0.0001628,2]
[403814201,1769551845755,-500.0,0.00016301,2]
[403814202,1769551845764,-500.0,0.00016301,2]
[403814203,1769551845774,-500.0,0.00016301,2]
[403814204,1769551845784,-465.49006321,0.00016301,2]
[403814205,1769551845794,-500.0,0.00016301,2]
[403814206,1769551845803,-500.0,0.00016301,2]
[403814207,1769551845813,-500.0,0.00016301,2]
[403814208,1769551845822,-150.0,0.00016301,2]
[403814209,1769551845831,-500.0,0.00016301,2]
[403814210,1769551845840,-500.0,0.00016301,2]
[403814211,1769551845849,-150.0,0.00016301,2]
[403814212,1769551845859,-300.0,0.00016301,2]
[403814213,1769551845868,-150.0,0.00016301,2]
[403814214,1769551845877,-201.72695087,0.00016301,2]
[403814215,1769551845887,-150.0,0.00016301,2]
[403814216,1769551845896,-779.0,0.00016301,2]
[403814217,1769551845906,-444.0,0.00016301,2]
[403814218,1769551845915,-940.08,0.00016305,2]
[403814219,1769551845924,-1680.0,0.00016323,2]
[403814220,1769551845934,-500.0,0.00016356,2]
[403814221,1769551845943,-500.0,0.00016356,2]
[403814222,1769551845952,-500.0,0.00016356,2]
[403814223,1769551845962,-500.0,0.00016356,2]
[403814224,1769551845972,-500.0,0.00016356,2]
[403814225,1769551845982,-500.0,0.00016356,2]
[403814226,1769551845991,-150.0,0.00016356,2]
[403814227,1769551846000,-500.0,0.00016356,2]
[403814229,1769551846010,-500.0,0.00016356,2]
[403814231,1769551846020,-150.0,0.00016356,2]
[403814233,1769551846029,-150.0,0.00016356,2]
[403814235,1769551846039,-275.73815935,0.00016356,2]
[403814237,1769551846049,-779.0,0.00016356,2]
[403814238,1769551846058,-444.0,0.00016356,2]
[403814239,1769551846068,-500.0,0.00016373,2]
[403814240,1769551846078,-500.0,0.00016373,2]
[403814241,1769551846087,-500.0,0.00016373,2]
[403814242,1769551846096,-500.0,0.00016373,2]
[403814243,1769551846106,-500.0,0.00016373,2]
[403814244,1769551846115,-500.0,0.00016373,2]
[403814245,1769551846125,-150.0000687,0.00016379,2]
[403814246,1769551846134,-500.0,0.00016411,2]
[403814247,1769551846144,-403.40923612,0.00016411,2]
[403814248,1769551846154,-500.0,0.00016411,2]
[403814249,1769551846164,-500.0,0.00016411,2]
[403814250,1769551846174,-500.0,0.00016411,2]
[403814251,1769551846183,-500.0,0.00016411,2]
[403814252,1769551846193,-250.0,0.00016411,2]
[403814253,1769551846203,-500.0,0.00016411,2]
[403814254,1769551846213,-500.0,0.00016411,2]
[403814255,1769551846222,-250.0,0.00016411,2]
[403814256,1769551846231,-779.0,0.00016411,2]
[403814257,1769551846241,-444.0,0.00016411,2]
[403814258,1769551846250,-332.06153458,0.00016434,2]
[403814259,1769551846259,-195.0,0.00016434,2]
[403814260,1769551846269,-300.0,0.00016434,2]
[403814261,1769551846279,-502.28343568,0.00016436,2]
[403814262,1769551846289,-500.0,0.00016436,2]
[403814263,1769551846298,-500.0,0.00016436,2]
[403814264,1769551846307,-500.0,0.00016436,2]
[403814265,1769551846318,-500.0,0.00016436,2]
[403814266,1769551846328,-500.0,0.00016436,2]
[403814267,1769551846342,-2395.12,0.00016438,2]
[403814268,1769551846351,-2395.12,0.00016438,2]
[403814269,1769551846361,-2395.12,0.00016438,2]
[403814270,1769551846371,-2395.12,0.00016438,2]
[403814271,1769551846381,-2395.12,0.00016438,2]
[403814272,1769551846390,-2395.12,0.00016438,2]
[403814273,1769551846399,-2395.12,0.00016438,2]
[403814274,1769551846408,-2395.12,0.00016438,2]
[403814275,1769551846418,-2395.12,0.00016438,2]
[403814276,1769551846427,-2395.12,0.00016438,2]
[403814277,1769551846435,-2395.12,0.00016438,2]
[403814278,1769551846445,-2395.12,0.00016438,2]
[403814279,1769551846454,-2395.12,0.00016438,2]
[403814280,1769551846463,-2395.12,0.00016438,2]
[403814281,1769551846473,-2395.12,0.00016438,2]
[403814282,1769551846483,-2395.12,0.00016438,2]
[403814283,1769551846492,-2395.12,0.00016438,2]
[403814284,1769551846502,-2395.12,0.00016438,2]
[403814285,1769551846512,-2395.12,0.00016438,2]
[403814286,1769551846521,-2395.12,0.00016438,2]
[403814287,1769551846530,-2395.12,0.00016438,2]
[403814288,1769551846539,-2395.12,0.00016438,2]
[403814289,1769551846548,-2395.12,0.00016438,2]
[403814290,1769551846557,-2395.18309839,0.00016438,2]
[403814291,1769551846566,-542.13465711,0.00016438,2]
[403814292,1769551846576,-500.0,0.00016438,2]
[403814293,1769551846585,-575.71176963,0.00016438,2]
[403814294,1769551846594,-500.0,0.00016438,2]
[403814295,1769551846604,-500.0,0.00016438,2]
[403814296,1769551846613,-500.0,0.00016438,2]
[403814297,1769551846622,-500.0,0.00016438,2]
[403814298,1769551846632,-500.0,0.00016438,2]
[403814299,1769551846640,-500.0,0.00016438,2]
[403814300,1769551846650,-500.0,0.00016438,2]
[403814301,1769551846659,-500.0,0.00016438,2]
[403814302,1769551846668,-500.0,0.00016438,2]
[403814303,1769551846677,-366.3757489,0.00016438,2]
[403814304,1769551846687,-500.0,0.00016438,2]
[403814305,1769551846696,-617.39879905,0.00016438,2]
[403814306,1769551846705,-617.39879905,0.00016438,2]
[403814307,1769551846715,-617.39879905,0.00016438,2]
[403814308,1769551846723,-617.39879905,0.00016438,2]
[403814309,1769551846733,-617.39879905,0.00016438,2]
[403814310,1769551846742,-617.39879905,0.00016438,2]